fUSD/lending_fUSD_20240109
["ID","MTS","AMOUNT","RATE_DAILY","PERIOD"]
[310909432,1704814319422,-500.0,0.00041424,30]
[310909433,1704814319435,-626.73,0.00041424,30]
[310909434,1704814319444,-830.11,0.00041424,30]
[310909435,1704814319454,-1939.09,0.00041424,30]
[310909436,1704814319464,-500.0,0.00041424,30]
[310909437,1704814319473,-500.0,0.00041424,30]
[310909438,1704814319483,-1992.23,0.00041424,30]
[310909439,1704814319493,-1672.06,0.00041424,30]
[310909440,1704814319502,-500.0,0.00041424,30]
[310909441,1704814319511,-1049.82,0.00041424,30]
[310909442,1704814319521,-832.6,0.00041424,30]
[310909443,1704814319531,-592.07,0.00041424,30]
[310909444,1704814319540,-1154.73,0.00041424,30]
[310909445,1704814319550,-617.46,0.00041424,30]
[310909446,1704814319560,-500.0,0.00041424,30]
[310909447,1704814319571,-2019.49,0.00041424,30]
[310909448,1704814319580,-500.0,0.00041424,30]
[310909449,1704814319590,-623.61,0.00041424,30]
[310909450,1704814319599,-1575.33,0.00041424,30]
[310909451,1704814319609,-500.0,0.00041424,30]
[310909452,1704814319619,-500.0,0.00041424,30]
[310909453,1704814319628,-500.0,0.00041424,30]
[310909454,1704814319638,-1208.87,0.00041424,30]
[310909455,1704814319649,-589.72,0.00041424,30]
[310909456,1704814319658,-500.0,0.00041424,30]
[310909457,1704814319668,-1100.7,0.00041424,30]
[310909458,1704814319678,-500.0,0.00041424,30]
[310909459,1704814319687,-574.55,0.00041424,30]
[310909460,1704814319697,-1443.2,0.00041424,30]
[310909461,1704814319707,-1118.67,0.00041424,30]
[310909462,1704814319716,-500.0,0.00041424,30]
[310909463,1704814319726,-1567.43,0.00041424,30]
[310909464,1704814319735,-500.0,0.00041424,30]
[310909465,1704814319744,-538.72,0.00041424,30]
[310909466,1704814319754,-500.0,0.00041424,30]
[310909467,1704814319763,-500.0,0.00041424,30]
[310909468,1704814319773,-615.94,0.00041424,30]
[310909469,1704814319783,-500.0,0.00041424,30]
[310909470,1704814319793,-1835.01,0.00041424,30]
[310909471,1704814319803,-500.0,0.00041424,30]
[310909472,1704814319816,-500.0,0.00041424,30]
[310909473,1704814319825,-835.4,0.00041424,30]
[310909474,1704814319835,-500.0,0.00041424,30]
[310909475,1704814319845,-500.0,0.00041424,30]
[310909476,1704814319854,-500.0,0.00041424,30]
[310909477,1704814319864,-2298.01,0.00041424,30]
[310909478,1704814319874,-870.0,0.00041424,30]
[310909479,1704814319884,-539.47,0.00041424,30]
[310909480,1704814319893,-1150.5,0.00041424,30]
[310909481,1704814319903,-1310.11,0.00041424,30]
[310909482,1704814319912,-500.0,0.00041424,30]
[310909483,1704814319922,-500.0,0.00041424,30]
[310909484,1704814319931,-1400.49,0.00041424,30]
[310909485,1704814319940,-1360.64,0.00041424,30]
[310909486,1704814319950,-500.0,0.00041424,30]
[310909487,1704814319959,-923.19,0.00041424,30]
[310909488,1704814319968,-1204.31,0.00041424,30]
[310909489,1704814319978,-771.54,0.00041424,30]
[310909490,1704814319987,-1160.23,0.00041424,30]
[310909491,1704814319997,-2584.55,0.00041424,30]
[310909492,1704814320008,-500.0,0.00041424,30]
[310909493,1704814320018,-500.0,0.00041424,30]
[310909494,1704814320027,-1315.98,0.00041424,30]
[310909495,1704814320037,-500.0,0.00041424,10]
[310909496,1704814320046,-1972.08,0.00041424,30]
[310909497,1704814320056,-625.53011924,0.00041424,30]
[310909498,1704814320066,-1668.26,0.00041424,30]
[310909499,1704814320077,-1439.0,0.00041424,30]
[310909500,1704814320086,-1429.35,0.00041424,30]
[310909501,1704814320095,-500.0,0.00041424,30]
[310909502,1704814320104,-2461.03,0.00041424,30]
[310909503,1704814320113,-946.78,0.00041424,30]
[310909504,1704814320123,-500.0,0.00041424,30]
[310909505,1704814320133,-500.0,0.00041424,4]
[310909506,1704814320143,-713.51,0.00041424,30]
[310909507,1704814320153,-1659.56,0.00041424,30]
[310909508,1704814320266,-500.0,0.00041424,30]
[310909509,1704814320276,-500.0,0.00041424,30]
[310909510,1704814320287,-500.0,0.00041424,30]
[310909511,1704814320297,-500.0,0.00041424,30]
[310909512,1704814320306,-500.0,0.00041424,30]
[310909513,1704814320316,-500.0,0.00041424,30]
[310909514,1704814320327,-500.0,0.00041424,30]
[310909515,1704814320337,-803.78,0.00041424,30]
[310909516,1704814320346,-500.0,0.00041424,30]
[310909517,1704814320356,-500.0,0.00041424,30]
[310909518,1704814320365,-614.42,0.00041424,30]
[310909519,1704814320375,-1000.0,0.00041424,7]
[310909520,1704814320386,-500.0,0.00041424,30]
[310909521,1704814320396,-800.95,0.00041424,30]
[310909522,1704814320405,-1758.64,0.00041424,30]
[310909523,1704814320415,-338.57795074,0.00041424,30]
[310909524,1704814320424,-500.0,0.00041424,30]
[310909525,1704814320434,-542.1452107,0.00041424,30]
[310909526,1704814320445,-500.0,0.00041424,30]
[310909527,1704814320454,-1778.42,0.00041424,30]
[310909528,1704814320464,-491.99494761,0.00041424,30]
[310909529,1704814320473,-848.11,0.00041424,30]
[310909530,1704814320484,-3407.77,0.00041424,30]
[310909531,1704814320493,-2138.28,0.00041424,30]
[310909532,1704814320504,-500.0,0.00041424,30]
[310909533,1704814320513,-500.0,0.00041424,30]
[310909534,1704814320523,-393.39671316,0.00041424,7]
[310909535,1704814320532,-500.0,0.00041424,30]
[310909536,1704814320542,-500.0,0.00041424,30]
[310909537,1704814320552,-500.0,0.00041424,30]
[310909538,1704814320562,-886.41,0.00041424,30]
[310909539,1704814320573,-500.0,0.00041424,2]
[310909540,1704814320583,-376.76336128,0.00041424,30]
[310909541,1704814320595,-200.92854228,0.00041424,30]
[310909542,1704814320605,-1677.31,0.00041424,30]
[310909543,1704814320615,-500.0,0.00041424,30]
[310909544,1704814320624,-500.0,0.00041424,30]
[310909545,1704814320633,-500.0,0.00041424,30]
[310909546,1704814320643,-500.0,0.00041424,30]
[310909547,1704814320652,-1138.73,0.00041424,30]
[310909548,1704814320661,-3178.9,0.00041424,30]
[310909549,1704814320672,-2732.04,0.00041424,30]
[310909550,1704814320681,-500.0,0.00041424,30]
[310909551,1704814320690,-770.65,0.00041424,30]
[310909552,1704814320699,-557.60482465,0.00041424,30]
[310909553,1704814320709,-500.0,0.00041424,30]
[310909554,1704814320718,-2194.76,0.00041424,30]
[310909555,1704814320727,-1008.53,0.00041424,30]
[310909556,1704814320737,-500.0,0.00041424,30]
[310909557,1704814320746,-1048.75,0.00041424,30]
[310909558,1704814320756,-500.0,0.00041424,30]
[310909559,1704814320766,-500.0,0.00041424,30]
[310909560,1704814320775,-1329.34,0.00041424,30]
[310909561,1704814320784,-2754.0,0.00041424,30]
[310909562,1704814320795,-500.0,0.00041424,30]
[310909563,1704814320804,-500.0,0.00041424,30]
[310909564,1704814320816,-1507.83,0.00041424,30]
[310909565,1704814320829,-500.0,0.00041424,30]
[310909566,1704814320839,-680.5,0.00041424,30]
[310909567,1704814320848,-500.0,0.00041424,30]
[310909568,1704814320858,-634.38,0.00041424,30]
[310909569,1704814320867,-2700.24,0.00041424,30]
[310909570,1704814320877,-500.0,0.00041424,30]
[310909571,1704814320886,-1356.37,0.00041424,30]
[310909572,1704814320895,-500.0,0.00041424,30]
[310909573,1704814320905,-500.0,0.00041424,30]
[310909574,1704814320914,-500.0,0.00041424,30]
[310909575,1704814320923,-651.64,0.00041424,30]
[310909576,1704814320932,-500.0,0.00041424,30]
[310909577,1704814320942,-500.0,0.00041424,30]
[310909578,1704814320951,-500.0,0.00041424,30]
[310909579,1704814320961,-952.35,0.00041424,30]
[310909580,1704814320970,-500.0,0.00041424,30]
[310909581,1704814320980,-500.0,0.00041424,30]
[310909582,1704814320989,-1810.23,0.00041424,30]
[310909583,1704814320999,-500.0,0.00041424,30]
[310909584,1704814321008,-587.58,0.00041424,30]
[310909585,1704814321017,-625.64,0.00041424,30]
[310909586,1704814321026,-676.46,0.00041424,30]
[310909587,1704814321035,-500.0,0.00041424,30]
[310909588,1704814321045,-500.0,0.00041424,30]
[310909589,1704814321054,-500.0,0.00041424,30]
[310909590,1704814321063,-1006.7,0.00041424,30]
[310909591,1704814321074,-500.0,0.00041424,30]
[310909592,1704814321084,-1236.35,0.00041424,30]
[310909593,1704814321093,-1037.96,0.00041424,30]
[310909594,1704814321103,-1919.15,0.00041424,30]
[310909595,1704814321113,-500.0,0.00041424,30]
[310909596,1704814321123,-500.0,0.00041424,30]
[310909597,1704814321132,-500.0,0.00041424,30]
[310909598,1704814321143,-1578.69,0.00041424,30]
[310909599,1704814321154,-500.0,0.00041424,30]
[310909600,1704814321163,-1865.73,0.00041424,30]
[310909601,1704814321173,-589.31,0.00041424,30]
[310909602,1704814321183,-500.0,0.00041424,30]
[310909603,1704814321192,-1362.93,0.00041424,30]
[310909604,1704814321202,-1537.84,0.00041424,30]
[310909605,1704814321211,-2456.66,0.00041424,30]
[310909606,1704814321221,-500.0,0.00041424,30]
[310909607,1704814321231,-500.0,0.00041424,30]
[310909608,1704814321240,-512.49843921,0.00041424,30]
[310909609,1704814321249,-500.0,0.00041424,30]
[310909610,1704814321258,-1710.93,0.00041424,30]
[310909611,1704814321268,-788.83,0.00041424,30]
[310909612,1704814321277,-500.0,0.00041424,30]
[310909613,1704814321287,-2756.46,0.00041424,30]
[310909614,1704814321296,-2705.23,0.00041424,30]
[310909615,1704814321306,-2588.77,0.00041424,30]
[310909616,1704814321315,-500.0,0.00041424,30]
[310909617,1704814321328,-946.47,0.00041424,30]
[310909618,1704814321337,-500.0,0.00041424,30]
[310909619,1704814321347,-500.0,0.00041424,30]
[310909620,1704814321357,-500.0,0.00041424,30]
[310909621,1704814321367,-500.0,0.00041424,30]
[310909622,1704814321376,-500.0,0.00041424,30]
[310909623,1704814321386,-825.0,0.00041424,30]
[310909624,1704814321396,-500.0,0.00041424,30]
[310909625,1704814321405,-500.0,0.00041424,30]
[310909626,1704814321416,-821.89,0.00041424,30]
[310909627,1704814321426,-1714.7,0.00041424,30]
[310909628,1704814321436,-987.47,0.00041424,30]
[310909629,1704814321445,-12516.53,0.00041424,30]
[310909630,1704814321454,-2523.55,0.00041424,30]
[310909631,1704814321464,-500.0,0.00041424,30]
[310909632,1704814321473,-1027.68,0.00041424,30]
[310909633,1704814321482,-1474.62,0.00041424,30]
[310909634,1704814321492,-1217.97,0.00041424,30]
[310909635,1704814321501,-297.4414515,0.00041424,30]
[310909636,1704814321511,-500.0,0.00041424,30]
[310909637,1704814321520,-500.0,0.00041424,30]
[310909638,1704814321530,-1454.57,0.00041424,30]
[310909639,1704814321540,-500.0,0.00041424,5]
[310909640,1704814321550,-1048.97,0.00041424,30]
[310909641,1704814321559,-2127.96,0.00041424,30]
[310909642,1704814321570,-500.0,0.00041424,30]
[310909643,1704814321580,-1299.93,0.00041424,30]
[310909644,1704814321590,-500.0,0.00041424,30]
[310909645,1704814321599,-510.08907441,0.00041424,30]
[310909646,1704814321609,-2596.84,0.00041424,30]
[310909647,1704814321618,-500.0,0.00041424,30]
[310909648,1704814321628,-1950.17,0.00041424,30]
[310909649,1704814321637,-725.04,0.00041424,30]
[310909650,1704814321647,-2106.17,0.00041424,30]
[310909651,1704814321656,-500.0,0.00041424,30]
[310909652,1704814321666,-794.41,0.00041424,30]
[310909653,1704814321675,-3285.45,0.00041424,30]
[310909654,1704814321684,-1542.09,0.00041424,7]
[310909655,1704814321694,-500.0,0.00041424,30]
[310909656,1704814321703,-2655.79,0.00041424,30]
[310909657,1704814321712,-7119.89,0.00041424,30]
[310909658,1704814321722,-650.25,0.00041424,30]
[310909659,1704814321731,-500.0,0.00041424,30]
[310909660,1704814321740,-1087.65,0.00041424,30]
[310909661,1704814321750,-500.0,0.00041424,30]
[310909662,1704814321759,-977.92,0.00041424,30]
[310909663,1704814321769,-913.65,0.00041424,30]
[310909664,1704814321781,-576.88,0.00041424,30]
[310909665,1704814321791,-2362.44,0.00041424,30]
[310909666,1704814321803,-1112.82,0.00041424,30]
[310909667,1704814321814,-1726.68,0.00041424,30]
[310909668,1704814321827,-3996.86,0.00041424,30]
[310909669,1704814321836,-2396.9,0.00041424,30]
[310909670,1704814321845,-2486.71,0.00041424,30]
[310909671,1704814321855,-500.0,0.00041424,30]
[310909672,1704814321864,-500.0,0.00041424,30]
[310909673,1704814321873,-500.0,0.00041424,30]
[310909674,1704814321882,-3045.65,0.00041424,30]
[310909675,1704814321891,-502.99,0.00041424,30]
[310909676,1704814321901,-4277.01,0.00041424,30]
[310909677,1704814321912,-2246.6,0.00041424,30]
[310909678,1704814321922,-1448.82,0.00041424,2]
[310909679,1704814321931,-1043.39,0.00041424,30]
[310909680,1704814321941,-502.73,0.00041424,30]
[310909681,1704814321950,-534.65,0.00041424,30]
[310909682,1704814321960,-891.36,0.00041424,30]
[310909683,1704814321969,-500.0,0.00041424,30]
[310909684,1704814321979,-1353.62,0.00041424,30]
[310909685,1704814321989,-483.32365163,0.00041424,30]
[310909686,1704814321999,-2632.89,0.00041424,30]
[310909687,1704814322009,-1838.21,0.00041424,30]
[310909688,1704814322019,-1576.53,0.00041424,30]
[310909689,1704814322028,-1105.49,0.00041424,30]
[310909690,1704814322038,-862.54,0.00041424,30]
[310909691,1704814322047,-1537.91,0.00041424,30]
[310909692,1704814322057,-500.0,0.00041424,30]
[310909693,1704814322066,-678.18,0.00041424,30]
[310909694,1704814322077,-500.0,0.00041424,30]
[310909695,1704814322087,-500.0,0.00041424,30]
[310909696,1704814322096,-1574.3,0.00041424,30]
[310909697,1704814322106,-4265.52,0.00041424,30]
[310909698,1704814322115,-3580.78,0.00041424,30]
[310909699,1704814322124,-726.93,0.00041424,30]
[310909700,1704814322134,-10916.38,0.00041424,30]
[310909701,1704814322143,-500.0,0.00041424,30]
[310909702,1704814322152,-1982.37,0.00041424,30]
[310909703,1704814322161,-500.0,0.00041424,30]
[310909704,1704814322170,-500.0,0.00041424,30]
[310909705,1704814322180,-1469.95,0.00041424,30]
[310909706,1704814322190,-2986.22,0.00041424,30]
[310909707,1704814322200,-1699.32,0.00041424,30]
[310909708,1704814322209,-3068.15,0.00041424,30]
[310909709,1704814322219,-686.48,0.00041424,30]
[310909710,1704814322228,-642.18646909,0.00041424,30]
[310909711,1704814322239,-1390.68,0.00041424,30]
[310909712,1704814322249,-10247.09,0.00041424,30]
[310909713,1704814322260,-1223.53,0.00041424,30]
[310909714,1704814322271,-500.0,0.00041424,30]
[310909715,1704814322282,-1685.22,0.00041424,30]
[310909716,1704814322293,-500.0,0.00041424,30]
[310909717,1704814322304,-500.0,0.00041424,30]
[310909718,1704814322315,-500.0,0.00041424,30]
[310909719,1704814322339,-212.18858827,0.00041424,30]
[310909720,1704814322350,-500.0,0.00041424,30]
[310909721,1704814322361,-1149.96,0.00041424,30]
[310909722,1704814322372,-6253.79,0.00041424,30]
[310909723,1704814322384,-500.0,0.00041424,30]
[310909724,1704814322395,-989.82,0.00041424,30]
[310909725,1704814322405,-506.49550899,0.00041424,30]
[310909726,1704814322416,-500.0,0.00041424,30]
[310909727,1704814322427,-2365.66,0.00041424,30]
[310909728,1704814322438,-1963.83,0.00041424,30]
[310909729,1704814322449,-701.0,0.00041424,30]
[310909730,1704814322460,-705.46,0.00041424,30]
[310909731,1704814322471,-500.0,0.00041424,30]
[310909732,1704814322482,-7334.72,0.00041424,30]
[310909733,1704814322493,-500.0,0.00041424,30]
[310909734,1704814322504,-2159.55,0.00041424,30]
[310909735,1704814322515,-7619.16,0.00041424,30]
[310909736,1704814322526,-7759.7,0.00041424,30]
[310909737,1704814322538,-500.0,0.00041424,30]
[310909738,1704814322549,-2266.7,0.00041424,30]
[310909739,1704814322560,-1725.58,0.00041424,30]
[310909740,1704814322575,-1264.61,0.00041424,30]
[310909741,1704814322589,-500.0,0.00041424,30]
[310909742,1704814322600,-500.0,0.00041424,30]
[310909743,1704814322610,-914.32,0.00041424,30]
[310909744,1704814322620,-689.51,0.00041424,30]
[310909745,1704814322630,-500.0,0.00041424,30]
[310909746,1704814322641,-6777.19,0.00041424,30]
[310909747,1704814322650,-1573.82,0.00041424,30]
[310909748,1704814322660,-500.0,0.00041424,30]
[310909749,1704814322669,-4036.91,0.00041424,30]
[310909750,1704814322679,-2670.87,0.00041424,30]
[310909751,1704814322689,-3417.76,0.00041424,30]
[310909752,1704814322699,-649.74,0.00041424,30]
[310909753,1704814322708,-1768.69,0.00041424,30]
[310909754,1704814322718,-2656.66,0.00041424,30]
[310909755,1704814322727,-500.0,0.00041424,30]
[310909756,1704814322737,-500.0,0.00041424,30]
[310909757,1704814322747,-3624.89,0.00041424,30]
[310909758,1704814322755,-891.81,0.00041424,30]
[310909759,1704814322765,-1969.21,0.00041424,30]
[310909760,1704814322774,-524.09417532,0.00041424,30]
[310909761,1704814322783,-556.48899162,0.00041424,30]
[310909762,1704814322792,-4760.81,0.00041424,30]
[310909763,1704814322804,-1849.48,0.00041424,30]
[310909764,1704814322814,-2591.36,0.00041424,30]
[310909765,1704814322830,-1829.62,0.00041424,30]
[310909766,1704814322840,-507.02,0.00041424,30]
[310909767,1704814322850,-1545.72,0.00041424,30]
[310909768,1704814322859,-1282.15,0.00041424,30]
[310909769,1704814322869,-820.1,0.00041424,30]
[310909770,1704814322878,-3330.89,0.00041424,30]
[310909771,1704814322887,-7125.45,0.00041424,30]
[310909772,1704814322897,-1041.48,0.00041424,30]
[310909773,1704814322906,-500.0,0.00041424,30]
[310909774,1704814322915,-500.0,0.00041424,30]
[310909775,1704814322925,-4552.78,0.00041424,30]
[310909776,1704814322934,-25135.11,0.00041424,30]
[310909777,1704814322945,-500.0,0.00041424,30]
[310909778,1704814322954,-18448.99,0.00041424,30]
[310909779,1704814322964,-3134.7,0.00041424,30]
[310909780,1704814322974,-2000.28,0.00041424,30]
[310909781,1704814322983,-500.0,0.00041424,30]
[310909782,1704814322992,-500.0,0.00041424,30]
[310909783,1704814323003,-500.0,0.00041424,30]
[310909784,1704814323013,-500.0,0.00041424,30]
[310909785,1704814323023,-745.36,0.00041424,30]
[310909786,1704814323034,-609.89627814,0.00041424,30]
[310909787,1704814323044,-13835.28,0.00041424,30]
[310909788,1704814323054,-1655.6,0.00041424,30]
[310909789,1704814323064,-1353.98,0.00041424,30]
[310909790,1704814323075,-2446.36,0.00041424,30]
[310909791,1704814323084,-19704.83,0.00041424,30]
[310909792,1704814323094,-3526.58,0.00041424,30]
[310909793,1704814323103,-11755.41,0.00041424,30]
[310909794,1704814323113,-2085.11,0.00041424,30]
[310909795,1704814323122,-500.0,0.00041424,30]
[310909796,1704814323131,-975.77,0.00041424,30]
[310909797,1704814323141,-500.0,0.00041424,7]
[310909798,1704814323150,-5456.33,0.00041424,30]
[310909799,1704814323160,-703.77,0.00041424,30]
[310909800,1704814323169,-578.03,0.00041424,30]
[310909801,1704814323179,-500.0,0.00041424,30]
[310909802,1704814323188,-18929.09,0.00041424,30]
[310909803,1704814323197,-91700.44,0.00041424,30]
[310909804,1704814323207,-500.0,0.00041424,30]
[310909805,1704814323217,-500.0,0.00041424,30]
[310909806,1704814323227,-610.44,0.00041424,30]
[310909807,1704814323236,-4955.76,0.00041424,30]
[310909808,1704814323246,-11389.4,0.00041424,30]
[310909809,1704814323255,-685.04,0.00041424,30]
[310909810,1704814323265,-5644.78,0.00041424,30]
[310909811,1704814323274,-1534.89,0.00041424,30]
[310909812,1704814323284,-1919.34,0.00041424,30]
[310909813,1704814323293,-1643.59,0.00041424,30]
[310909814,1704814323302,-500.0,0.00041424,30]
[310909815,1704814323312,-1207.82,0.00041424,30]
[310909816,1704814323324,-500.0,0.00041424,30]
[310909817,1704814323333,-500.0,0.00041424,30]
[310909818,1704814323343,-3051.16,0.00041424,30]
[310909819,1704814323353,-2205.97,0.00041424,30]
[310909820,1704814323362,-500.0,0.00041424,30]
[310909821,1704814323372,-4326.12,0.00041424,30]
[310909822,1704814323381,-23372.75,0.00041424,30]
[310909823,1704814323391,-4650.3,0.00041424,30]
[310909824,1704814323401,-1706.69,0.00041424,30]
[310909825,1704814323410,-3602.98,0.00041424,30]
[310909826,1704814323419,-500.0,0.00041424,30]
[310909827,1704814323429,-500.0,0.00041424,30]
[310909828,1704814323439,-948.23,0.00041424,30]
[310909829,1704814323448,-1484.9,0.00041424,30]
[310909830,1704814323458,-625.91,0.00041424,30]
[310909831,1704814323467,-4750.61,0.00041424,30]
[310909832,1704814323476,-677.56,0.00041424,30]
[310909833,1704814323486,-570.53,0.00041424,30]
[310909834,1704814323495,-753.01,0.00041424,30]
[310909835,1704814323504,-8509.95,0.00041424,30]
[310909836,1704814323514,-1014.72,0.00041424,30]
[310909837,1704814323523,-1075.83,0.00041424,30]
[310909838,1704814323532,-10401.23,0.00041424,30]
[310909839,1704814323541,-500.0,0.00041424,30]
[310909840,1704814323551,-1988.56,0.00041424,30]
[310909841,1704814323561,-2247.55,0.00041424,30]
[310909842,1704814323573,-1760.09,0.00041424,30]
[310909843,1704814323583,-1917.59,0.00041424,30]
[310909844,1704814323593,-6630.63,0.00041424,30]
[310909845,1704814323602,-6677.97,0.00041424,30]
[310909846,1704814323612,-912.61,0.00041424,30]
[310909847,1704814323622,-500.0,0.00041424,30]
[310909848,1704814323631,-7738.46,0.00041424,30]
[310909849,1704814323641,-500.0,0.00041424,30]
[310909850,1704814323651,-500.0,0.00041424,30]
[310909851,1704814323660,-14437.73,0.00041424,30]
[310909852,1704814323669,-839.67,0.00041424,30]
[310909853,1704814323679,-1402.57,0.00041424,30]
[310909854,1704814323688,-814.2,0.00041424,30]
[310909855,1704814323698,-2196.22,0.00041424,30]
[310909856,1704814323707,-500.0,0.00041424,30]
[310909857,1704814323716,-500.0,0.00041424,30]
[310909858,1704814323726,-36009.51,0.00041424,30]
[310909859,1704814323735,-2863.88,0.00041424,30]
[310909860,1704814323745,-12556.6,0.00041424,30]
[310909861,1704814323754,-2592.03,0.00041424,30]
[310909862,1704814323762,-3304.26,0.00041424,30]
[310909863,1704814323772,-2705.09,0.00041424,30]
[310909864,1704814323782,-500.0,0.00041424,30]
[310909865,1704814323791,-500.0,0.00041424,30]
[310909866,1704814323802,-500.0,0.00041424,30]
[310909867,1704814323812,-2751.1,0.00041424,30]
[310909868,1704814323825,-2400.96,0.00041424,30]
[310909869,1704814323834,-4406.91,0.00041424,30]
[310909870,1704814323844,-6577.65,0.00041424,30]
[310909871,1704814323853,-1297.88,0.00041424,30]
[310909872,1704814323863,-571.22,0.00041424,30]
[310909873,1704814323873,-500.0,0.00041424,30]
[310909874,1704814323882,-3403.92,0.00041424,30]
[310909875,1704814323891,-3033.25,0.00041424,30]
[310909876,1704814323900,-952.63,0.00041424,30]
[310909877,1704814323910,-1721.02,0.00041424,30]
[310909878,1704814323920,-223.03955303,0.00041424,30]
[310909879,1704814323929,-836.3,0.00041424,7]
[310909880,1704814323938,-7028.61,0.00041424,30]
[310909881,1704814323948,-500.0,0.00041424,30]
[310909882,1704814323957,-5593.4,0.00041424,30]
[310909883,1704814323967,-2579.3,0.00041424,30]
[310909884,1704814323976,-500.0,0.00041424,30]
[310909885,1704814323985,-831.97,0.00041424,30]
[310909886,1704814323995,-500.0,0.00041424,30]
[310909887,1704814324005,-30439.38,0.00041424,30]
[310909888,1704814324014,-500.0,0.00041424,30]
[310909889,1704814324023,-3381.6,0.00041424,30]
[310909890,1704814324033,-2158.92,0.00041424,30]
[310909891,1704814324042,-500.0,0.00041424,30]
[310909892,1704814324051,-3472.05,0.00041424,30]
[310909893,1704814324061,-3977.49,0.00041424,30]
[310909894,1704814324070,-3410.32,0.00041424,30]
[310909895,1704814324080,-500.0,0.00041424,30]
[310909896,1704814324089,-3128.49,0.00041424,30]
[310909897,1704814324099,-500.0,0.00041424,30]
[310909898,1704814324108,-10635.21,0.00041424,30]
[310909899,1704814324118,-509.25396475,0.00041424,30]
[310909900,1704814324127,-663.76,0.00041424,30]
[310909901,1704814324136,-386.57307868,0.00041424,30]
[310909902,1704814324146,-24039.48,0.00041424,30]
[310909903,1704814324155,-500.0,0.00041424,30]
[310909904,1704814324165,-500.0,0.00041424,30]
[310909905,1704814324174,-2042.98,0.00041424,30]
[310909906,1704814324184,-3985.89,0.00041424,30]
[310909907,1704814324195,-963.6,0.00041424,30]
[310909908,1704814324205,-666.14,0.00041424,30]
[310909909,1704814324214,-506.11985843,0.00041424,2]
[310909910,1704814324224,-556.97,0.00041424,30]
[310909911,1704814324234,-8775.01,0.00041424,30]
[310909912,1704814324244,-1309.81,0.00041424,30]
[310909913,1704814324253,-2400.49,0.00041424,30]
[310909914,1704814324263,-500.0,0.00041424,30]
[310909915,1704814324272,-566.11,0.00041424,30]
[310909916,1704814324282,-12849.89,0.00041424,30]
[310909917,1704814324291,-4562.41,0.00041424,30]
[310909918,1704814324301,-4825.39,0.00041424,30]
[310909919,1704814324310,-500.0,0.00041424,30]
[310909920,1704814324321,-2107.23,0.00041424,30]
[310909921,1704814324333,-1467.66,0.00041424,30]
[310909922,1704814324342,-1188.47,0.00041424,30]
[310909923,1704814324352,-500.0,0.00041424,30]
[310909924,1704814324362,-500.0,0.00041424,30]
[310909925,1704814324372,-11369.64,0.00041424,30]
[310909926,1704814324381,-500.0,0.00041424,7]
[310909927,1704814324391,-2592.28,0.00041424,30]
[310909928,1704814324401,-1243.26,0.00041424,30]
[310909929,1704814324412,-3734.08,0.00041424,30]
[310909930,1704814324422,-566.95,0.00041424,30]
[310909931,1704814324432,-520.31,0.00041424,30]